bitfinex-derivatives/quotes_BTCF0:USTF0_20250218
["timestamp","ask_amount","ask_price","bid_price","bid_amount"]
[1739868161342,0.08760309,95417.0,95416.0,0.2096189]
[1739868161542,0.09160309,95417.0,95416.0,0.2096189]
[1739868162147,0.09060309,95417.0,95412.0,0.0716]
[1739868162353,0.09060309,95417.0,95413.0,0.2096233]
[1739868162550,0.09060309,95417.0,95411.0,0.069]
[1739868162748,0.09060309,95417.0,95416.0,0.2096189]
[1739868163048,0.09160309,95417.0,95416.0,0.2096189]
[1739868163641,0.09060309,95417.0,95416.0,0.2096189]
[1739868164247,0.09160309,95417.0,95416.0,0.2096189]
[1739868167857,0.02160309,95417.0,95416.0,0.2096189]
[1739868169156,0.009,95417.0,95416.0,0.58280797]
[1739868169354,0.00015716,95425.0,95424.0,0.2096013]
[1739868169554,0.00015716,95425.0,95424.0,0.5704013]
[1739868170960,0.00715716,95425.0,95424.0,0.5704013]
[1739868171154,0.0523705,95479.0,95424.0,0.3608]
[1739868171155,0.01202553,95434.0,95424.0,0.3608]
[1739868171359,0.27757398,95450.0,95441.0,0.2095637]
[1739868171559,0.27757398,95450.0,95442.0,0.0755]
[1739868171560,0.06802968,95450.0,95442.0,0.0755]
[1739868171763,0.209553,95447.0,95442.0,0.0755]
[1739868172159,0.37338279,95444.0,95442.0,0.0755]
[1739868172960,0.002,95443.0,95442.0,0.0755]
[1739868173358,0.37338279,95444.0,95442.0,0.0755]
[1739868173359,0.58294119,95444.0,95442.0,0.0755]
[1739868173562,0.58594119,95444.0,95435.0,0.2095766]
[1739868173760,0.59094119,95444.0,95435.0,0.2797766]
[1739868173963,0.58794119,95444.0,95435.0,0.2797766]
[1739868174165,0.003,95443.0,95435.0,0.2797766]
[1739868176174,0.005,95443.0,95435.0,0.2797766]
[1739868177269,0.005,95443.0,95436.0,0.2095748]
[1739868178265,0.37338279,95444.0,95436.0,0.2095748]
[1739868178468,0.006,95443.0,95436.0,0.2095748]
[1739868179268,0.37338279,95444.0,95436.0,0.2095748]
[1739868179469,0.0702,95442.0,95436.0,0.2095748]
[1739868180873,0.0757,95441.0,95435.0,0.145]
[1739868181265,0.0692,95440.0,95435.0,0.145]
[1739868182872,0.0742,95440.0,95435.0,0.145]
[1739868183567,0.0782,95440.0,95435.0,0.145]
[1739868185972,0.009,95440.0,95436.0,0.2095749]
[1739868186377,0.009,95440.0,95435.0,0.145]
[1739868187076,0.011,95440.0,95435.0,0.145]
[1739868187877,0.2095693,95439.0,95435.0,0.145]
[1739868188272,0.011,95440.0,95435.0,0.3545763]
[1739868188472,0.011,95440.0,95437.0,0.2095724]
[1739868188667,0.01,95440.0,95437.0,0.2095724]
[1739868189174,0.005,95440.0,95438.0,0.2095704]
[1739868189472,0.009,95440.0,95438.0,0.2095704]
[1739868189678,0.008,95440.0,95438.0,0.2095704]
[1739868189879,0.007,95440.0,95438.0,0.2095704]
[1739868190077,0.007,95440.0,95435.0,0.145]
[1739868190273,0.007,95440.0,95437.0,0.2095726]
[1739868190682,0.007,95440.0,95435.0,0.145]
[1739868190872,0.007,95440.0,95437.0,0.2095719]
[1739868191180,0.007,95440.0,95435.0,0.145]
[1739868191479,0.003,95440.0,95439.0,0.2095684]
[1739868191670,0.01,95440.0,95439.0,0.2095684]
[1739868192278,0.003,95440.0,95439.0,0.2095684]
[1739868192778,0.01,95440.0,95439.0,0.2095684]
[1739868192977,0.01,95440.0,95435.0,0.145]
[1739868193181,0.012,95440.0,95435.0,0.145]
[1739868193380,0.012,95440.0,95436.0,0.2095745]
[1739868194485,0.012,95440.0,95435.0,0.145]
[1739868194486,0.007,95440.0,95435.0,0.145]
[1739868194680,0.012,95440.0,95437.0,0.2095726]
[1739868195483,0.005,95440.0,95437.0,0.2095726]
[1739868195678,0.58157087,95444.0,95437.0,0.2095726]
[1739868195875,0.58089087,95444.0,95437.0,0.2095726]
[1739868196285,0.004,95440.0,95437.0,0.2095726]
[1739868196485,0.009,95440.0,95437.0,0.2095726]
[1739868196694,0.009,95440.0,95435.0,0.145]
[1739868196872,0.009,95440.0,95439.0,0.2095684]
[1739868197177,0.005,95440.0,95439.0,0.2095684]
[1739868197772,0.009,95440.0,95439.0,0.2095684]
[1739868198182,0.004,95440.0,95439.0,0.2095684]
[1739868198582,0.004,95440.0,95439.0,0.22168508]
[1739868198979,0.01,95440.0,95439.0,0.22168508]
[1739868199187,0.006,95440.0,95439.0,0.22168508]
[1739868199991,0.006,95440.0,95439.0,0.2095684]
[1739868200889,0.006,95440.0,95439.0,0.22171976]
[1739868201190,0.00547736,95453.0,95442.0,0.0523902]
[1739868201385,0.00547736,95453.0,95452.0,0.2095398]
[1739868201586,0.21501496,95453.0,95452.0,0.2095398]
[1739868202384,0.22201496,95453.0,95452.0,0.2095398]
[1739868202593,0.22301496,95453.0,95452.0,0.2095398]
[1739868202889,0.01347736,95453.0,95452.0,0.2095398]
[1739868203082,0.01347736,95453.0,95452.0,0.2105398]
[1739868203083,0.02437495,95453.0,95452.0,0.2105398]
[1739868203279,0.02537495,95453.0,95452.0,0.2115398]
[1739868203987,0.02005475,95453.0,95452.0,0.2115398]
[1739868205085,0.00815716,95453.0,95452.0,0.2115398]
[1739868206392,0.019873,95453.0,95452.0,0.2115398]
[1739868206586,0.00815716,95453.0,95452.0,0.2115398]
[1739868208687,0.4258807,95479.0,95453.0,0.0523843]
[1739868208891,0.0762,95472.0,95460.0,0.12041018]
[1739868209088,0.0762,95472.0,95461.0,0.1387]
[1739868209293,0.0762,95472.0,95471.0,0.2094981]
[1739868209889,0.3628,95473.0,95462.0,0.00015716]
[1739868210099,0.37505153,95473.0,95472.0,0.2094959]
[1739868211298,0.37305153,95473.0,95472.0,0.2094959]
[1739868211695,0.37305153,95473.0,95472.0,0.4192959]
[1739868212099,0.37305153,95473.0,95472.0,0.4202959]
[1739868212393,0.37305153,95473.0,95472.0,0.4212959]
[1739868212994,0.58254523,95473.0,95472.0,0.2794959]
[1739868213699,0.37305153,95473.0,95472.0,0.2794959]
[1739868224804,0.01225153,95473.0,95472.0,0.2794959]
[1739868225002,0.2094916,95474.0,95472.0,0.07]
[1739868225202,0.2094916,95474.0,95473.0,0.2094937]
[1739868225406,0.22118098,95474.0,95473.0,0.2094937]
[1739868226510,0.01168938,95474.0,95473.0,0.2094937]
[1739868226710,0.001,95474.0,95473.0,0.2094937]
[1739868227604,0.01288424,95474.0,95473.0,0.2094937]
[1739868228909,0.01188424,95474.0,95473.0,0.2094937]
[1739868229108,0.001,95474.0,95473.0,0.2094937]
[1739868230004,0.01270612,95474.0,95473.0,0.2094937]
[1739868231101,0.01270612,95474.0,95472.0,0.068]
[1739868232316,0.01270612,95474.0,95472.0,0.2774959]
[1739868232507,0.01270612,95474.0,95472.0,0.068]
[1739868233315,0.01170612,95474.0,95472.0,0.068]
[1739868233522,0.001,95474.0,95472.0,0.068]
[1739868233712,0.001,95474.0,95472.0,0.2774956]
[1739868233913,0.3608,95475.0,95472.0,0.2774956]
[1739868234118,0.001,95474.0,95472.0,0.2774956]
[1739868234423,0.3608,95475.0,95472.0,0.2774956]
[1739868234717,0.001,95474.0,95472.0,0.2774956]
[1739868235019,0.01275418,95474.0,95472.0,0.068]
[1739868235218,0.001,95474.0,95472.0,0.068]
[1739868236419,0.01296459,95474.0,95472.0,0.068]
[1739868236617,0.2094937,95473.0,95472.0,0.068]
[1739868236923,0.2095157,95463.0,95462.0,0.00015716]
[1739868237218,0.5703157,95463.0,95462.0,0.00015716]
[1739868239635,0.5713157,95463.0,95462.0,0.00015716]
[1739868240235,0.5713157,95463.0,95462.0,0.00115716]
[1739868240835,0.5713157,95463.0,95462.0,0.00215716]
[1739868241334,0.5713157,95463.0,95462.0,0.00115716]
[1739868242838,0.3618,95463.0,95462.0,0.00115716]
[1739868243038,0.3618,95463.0,95462.0,0.00015716]
[1739868243240,0.5713157,95463.0,95462.0,0.00015716]
[1739868243429,0.5703157,95463.0,95462.0,0.00015716]
[1739868243736,0.5713157,95463.0,95462.0,0.00015716]
[1739868244034,0.5713157,95463.0,95462.0,0.00115716]
[1739868244237,0.5713157,95463.0,95462.0,0.00215716]
[1739868244635,0.5713157,95463.0,95462.0,0.00115716]
[1739868244833,0.5713157,95463.0,95462.0,0.00015716]
[1739868245340,0.5703157,95463.0,95462.0,0.00015716]
[1739868245527,0.5713157,95463.0,95462.0,0.00015716]
[1739868247037,0.5703157,95463.0,95462.0,0.00011716]
[1739868247235,0.2095354,95454.0,95453.0,0.0702]
[1739868247538,0.5703354,95454.0,95453.0,0.0702]
[1739868248637,0.5713354,95454.0,95453.0,0.0702]
[1739868249036,0.3618,95454.0,95453.0,0.0702]
[1739868249236,0.6756154,95454.0,95453.0,0.0702]
[1739868249437,0.5713354,95454.0,95453.0,0.0702]
[1739868250039,0.5703354,95454.0,95453.0,0.0702]
[1739868250240,0.5713354,95454.0,95453.0,0.0702]
[1739868252341,0.57660822,95454.0,95453.0,0.0702]
[1739868253237,0.57560822,95454.0,95453.0,0.0702]
[1739868253446,0.57660822,95454.0,95453.0,0.0702]
[1739868254440,0.57560822,95454.0,95453.0,0.0702]
[1739868254640,0.57660822,95454.0,95453.0,0.0702]
[1739868259846,0.57560822,95454.0,95453.0,0.0702]
[1739868260047,0.57660822,95454.0,95453.0,0.0702]
[1739868261540,0.57560822,95454.0,95453.0,0.0702]
[1739868261848,0.57660822,95454.0,95453.0,0.0702]
[1739868263050,0.57560822,95454.0,95453.0,0.0702]
[1739868263247,0.57660822,95454.0,95453.0,0.0702]
[1739868263947,0.21580822,95454.0,95453.0,0.0702]
[1739868264149,0.57660822,95454.0,95453.0,0.0702]
[1739868265045,0.36707282,95454.0,95453.0,0.0702]
[1739868265250,0.36707282,95454.0,95453.0,0.2119]
[1739868266552,0.57660822,95454.0,95453.0,0.2119]
[1739868266853,0.57560822,95454.0,95453.0,0.2119]
[1739868267042,0.57660822,95454.0,95453.0,0.2119]
[1739868270055,0.36707282,95454.0,95453.0,0.2119]
[1739868270251,0.36607282,95454.0,95453.0,0.2119]
[1739868270453,0.36707282,95454.0,95453.0,0.2119]
[1739868271044,0.36707282,95454.0,95453.0,0.4214376]
[1739868271747,0.3618,95454.0,95453.0,0.4214376]
[1739868273045,0.3608,95454.0,95453.0,0.4214376]
[1739868273251,0.3618,95454.0,95453.0,0.4214376]
[1739868274155,0.3608,95454.0,95453.0,0.4214376]
[1739868274357,0.3618,95454.0,95453.0,0.4214376]
[1739868276253,0.001,95454.0,95453.0,0.4214376]
[1739868277356,0.3608,95455.0,95453.0,0.2119]
[1739868277661,0.3608,95455.0,95454.0,0.2095354]
[1739868278151,0.3608,95455.0,95454.0,0.13742384]
[1739868278958,0.3608,95455.0,95454.0,0.2095354]
[1739868279756,0.3618,95455.0,95454.0,0.2095354]
[1739868283560,0.3608,95455.0,95454.0,0.2095354]
[1739868283749,0.3618,95455.0,95454.0,0.2095354]
[1739868284157,0.3608,95455.0,95454.0,0.2095354]
[1739868284355,0.3618,95455.0,95454.0,0.2095354]
[1739868290267,0.3608,95455.0,95454.0,0.2095354]
[1739868290472,0.3618,95455.0,95454.0,0.2095354]
[1739868293266,0.3608,95455.0,95454.0,0.2095354]
[1739868293467,0.3618,95455.0,95454.0,0.2095354]
[1739868293866,0.3608,95455.0,95454.0,0.2095354]
[1739868294068,0.3618,95455.0,95454.0,0.2095354]
[1739868294473,0.3608,95455.0,95454.0,0.2095354]
[1739868294677,0.3618,95455.0,95454.0,0.2095354]
[1739868295786,0.001,95455.0,95454.0,0.22439263]
[1739868295971,0.2094975,95472.0,95454.0,0.01485723]
[1739868296171,0.5702975,95472.0,95471.0,0.2094981]
[1739868296875,0.3608,95472.0,95471.0,0.2094981]
[1739868297278,0.3608,95472.0,95471.0,0.2104981]
[1739868297577,0.3618,95472.0,95471.0,0.2114981]
[1739868301078,0.3618,95472.0,95471.0,0.002]
[1739868301277,0.46604,95472.0,95471.0,0.002]
[1739868301478,0.6755359,95472.0,95471.0,0.002]
[1739868301677,0.5712959,95472.0,95471.0,0.002]
[1739868302076,0.3618,95472.0,95471.0,0.002]
[1739868302275,0.46604,95472.0,95471.0,0.002]
[1739868304775,0.46604,95472.0,95471.0,0.2114981]
[1739868304979,0.3618,95472.0,95471.0,0.2114981]
[1739868305571,0.001,95472.0,95471.0,0.2114981]
[1739868306579,0.001,95472.0,95471.0,0.2104981]
[1739868307082,0.01212,95474.0,95473.0,0.2094937]
[1739868307379,0.0747,95480.0,95467.0,0.3608]
[1739868307577,0.0747,95480.0,95479.0,0.2094806]
[1739868307780,0.08902741,95480.0,95479.0,0.2094806]
[1739868308874,0.01432741,95480.0,95479.0,0.2094806]
[1739868309074,0.00015716,95481.0,95479.0,0.2094806]
[1739868309678,0.5757,95499.0,95486.0,0.2094643]
[1739868309883,0.58946674,95499.0,95489.0,0.06802968]
[1739868310083,0.58946674,95499.0,95489.0,0.27748768]
[1739868310373,0.2094399,95498.0,95489.0,0.209458]
[1739868310574,0.2094445,95496.0,95487.0,0.2118]
[1739868310770,0.2094445,95496.0,95487.0,0.1421]
[1739868311580,0.2094445,95496.0,95487.0,0.0686]
[1739868311971,0.59022674,95499.0,95487.0,0.0686]
[1739868312180,0.58946674,95499.0,95487.0,0.0686]
[1739868315983,0.58946674,95499.0,95488.0,0.2094603]
[1739868316185,0.43088753,95499.0,95488.0,0.2094603]
[1739868317192,0.3608,95490.0,95487.0,0.00859932]
[1739868317690,0.0716,95489.0,95487.0,0.00859932]
[1739868318884,0.2094647,95487.0,95482.0,0.00015708]
[1739868319278,0.1462,95486.0,95482.0,0.00015708]
[1739868321778,0.0729,95486.0,95482.0,0.00015708]
[1739868323283,0.2823673,95486.0,95482.0,0.00015708]
[1739868323486,0.2094718,95483.0,95482.0,0.00015708]
[1739868328703,0.2094806,95479.0,95478.0,0.05569762]
[1739868328892,0.5702806,95479.0,95478.0,0.05569762]
[1739868330002,0.3608,95479.0,95469.0,0.00172814]
[1739868330200,0.2095,95471.0,95469.0,0.00172814]
[1739868331002,0.2095003,95470.0,95469.0,0.00172814]
[1739868333510,0.5703003,95470.0,95469.0,0.00172814]
[1739868334190,0.58430802,95470.0,95469.0,0.00172814]
[1739868337706,0.58430802,95470.0,95469.0,0.00015708]
[1739868339108,0.22350802,95470.0,95469.0,0.00015708]
[1739868339308,0.58430802,95470.0,95469.0,0.00015708]
[1739868340406,0.0523764,95468.0,95451.0,0.0738]
[1739868340708,0.2095384,95453.0,95451.0,0.1482]
[1739868341702,0.3608,95455.0,95451.0,0.1482]
[1739868341902,0.46496,95455.0,95451.0,0.1482]
[1739868343208,0.6744937,95455.0,95451.0,0.1482]
[1739868343409,0.2095377,95453.0,95451.0,0.1482]
[1739868344703,0.2125377,95453.0,95451.0,0.1482]
[1739868344904,0.003,95453.0,95451.0,0.1482]
[1739868345811,0.003,95453.0,95451.0,0.3577418]
[1739868347015,0.003,95453.0,95451.0,0.1482]
[1739868347316,0.003,95453.0,95452.0,0.2095398]
[1739868347814,0.3608,95455.0,95454.0,0.2095354]
[1739868348114,0.0689,95467.0,95454.0,0.2095354]
[1739868348331,0.2095184,95462.0,95455.0,0.2095326]
[1739868349016,0.2095254,95459.0,95451.0,0.1482]
[1739868349616,0.13605936,95461.0,95451.0,0.1482]
[1739868349805,0.2095298,95457.0,95451.0,0.1482]
[1739868350005,0.34558156,95461.0,95451.0,0.1482]
[1739868350208,0.002,95455.0,95451.0,0.357742]
[1739868350414,0.002,95455.0,95452.0,0.2095393]
[1739868350615,0.27755008,95461.0,95452.0,0.2095393]
[1739868350916,0.07002968,95461.0,95451.0,0.1482]
[1739868351216,0.13605936,95461.0,95451.0,0.1482]
[1739868351413,0.002,95455.0,95451.0,0.1482]
[1739868352812,0.075,95456.0,95451.0,0.1482]
[1739868353516,0.2845314,95456.0,95451.0,0.1482]
[1739868354114,0.002,95455.0,95451.0,0.1482]
[1739868354516,0.3886914,95456.0,95451.0,0.1482]
[1739868354817,0.2865314,95456.0,95451.0,0.1482]
[1739868355113,0.077,95456.0,95451.0,0.1482]
[1739868356710,0.075,95456.0,95451.0,0.1482]
[1739868356908,0.002,95455.0,95451.0,0.1482]
[1739868357326,0.075,95456.0,95451.0,0.1482]
[1739868357510,0.077,95456.0,95451.0,0.1482]
[1739868359020,0.002,95455.0,95451.0,0.1482]
[1739868359617,0.077,95456.0,95451.0,0.1482]
[1739868360415,0.002,95455.0,95451.0,0.3577419]
[1739868360819,0.00517949,95455.0,95451.0,0.1482]
[1739868361019,0.002,95456.0,95453.0,0.2095375]
[1739868361220,0.002,95456.0,95451.0,0.1482]
[1739868361412,0.10416,95457.0,95451.0,0.1482]
[1739868361613,0.10416,95457.0,95453.0,0.2095365]
[1739868361820,0.06802968,95461.0,95453.0,0.2095365]
[1739868362316,0.06802968,95461.0,95454.0,0.2095348]
[1739868362820,0.2095223,95460.0,95451.0,0.1482]
[1739868363015,0.06802968,95461.0,95451.0,0.1482]
[1739868363222,0.06802968,95461.0,95454.0,0.2095354]
[1739868363522,0.06802968,95461.0,95451.0,0.1482]
[1739868363722,0.2095245,95459.0,95451.0,0.1482]
[1739868364917,0.2095245,95459.0,95451.0,0.3577409]
[1739868365817,0.06802968,95461.0,95451.0,0.3577409]
[1739868365818,0.2095288,95458.0,95451.0,0.3577409]
[1739868366317,0.0053405,95456.0,95451.0,0.3577409]
[1739868366725,0.2148729,95456.0,95451.0,0.1482]
[1739868367424,0.0053405,95456.0,95451.0,0.1482]
[1739868368328,0.0053405,95456.0,95451.0,0.3577413]
[1739868368521,0.0053405,95456.0,95451.0,0.1482]
[1739868368921,0.2148736,95456.0,95451.0,0.1482]
[1739868369120,0.2095341,95455.0,95451.0,0.1482]
[1739868371125,0.0053405,95456.0,95451.0,0.1482]
[1739868371424,0.2095398,95452.0,95451.0,0.1482]
[1739868373533,0.2095398,95452.0,95451.0,0.0744]
[1739868373724,0.2095596,95443.0,95442.0,0.00015708]
[1739868373924,0.2095596,95443.0,95442.0,0.00011578]
[1739868374330,0.3566596,95443.0,95442.0,0.00011578]
[1739868375033,0.1471,95443.0,95442.0,0.00111578]
[1739868376331,0.0871526,95443.0,95442.0,0.00111578]
[1739868376633,0.0132526,95443.0,95442.0,0.00111578]
[1739868376829,0.2095557,95445.0,95442.0,0.00111578]
[1739868377034,0.1412,95451.0,95442.0,0.00111578]
[1739868377035,0.1412,95451.0,95450.0,86.76397549]
[1739868377427,0.36396258,95451.0,95450.0,86.76397549]
[1739868378736,0.36396258,95451.0,95450.0,86.76497549]
[1739868383533,0.36396258,95451.0,95450.0,86.69285333]
[1739868385934,0.36396258,95451.0,95450.0,86.65135721]
[1739868386136,0.36396258,95451.0,95450.0,86.60884357]
[1739868386435,0.36396258,95451.0,95450.0,86.50271931]
[1739868386642,0.72476258,95451.0,95450.0,86.50271931]
[1739868390636,0.72476258,95451.0,95450.0,86.47443201]
[1739868390833,0.82129076,95451.0,95450.0,86.47443201]
[1739868391031,0.82129076,95451.0,95450.0,86.40350807]
[1739868391234,1.44939327,95451.0,95450.0,85.78174406]
[1739868391542,1.44939327,95451.0,95450.0,85.69366563]
[1739868391935,1.44939327,95451.0,95450.0,85.68955858]
[1739868392135,1.44939327,95451.0,95450.0,85.49831858]
[1739868392340,1.44939327,95451.0,95450.0,85.42242547]
[1739868392538,1.44939327,95451.0,95450.0,85.14518762]
[1739868392737,1.44939327,95451.0,95450.0,85.12019645]
[1739868393243,1.44939327,95451.0,95450.0,85.09090644]
[1739868393440,1.44939327,95451.0,95450.0,85.08772644]
[1739868393640,1.44939327,95451.0,95450.0,85.07351644]
[1739868393841,1.44939327,95451.0,95450.0,84.73727429]
[1739868394143,1.44939327,95451.0,95450.0,84.67870429]
[1739868394445,1.44939327,95451.0,95450.0,84.67119428]
[1739868394636,1.44939327,95451.0,95450.0,84.61709428]
[1739868394837,1.44939327,95451.0,95450.0,84.49529221]
[1739868395141,1.44939327,95451.0,95450.0,84.10179453]
[1739868395933,1.44939327,95451.0,95450.0,84.07557453]
[1739868396139,1.62339327,95451.0,95450.0,84.04758068]
[1739868396447,1.62339327,95451.0,95450.0,83.98174069]
[1739868396646,1.62339327,95451.0,95450.0,83.81749069]
[1739868396834,1.62339327,95451.0,95450.0,83.54790853]
[1739868397144,1.62339327,95451.0,95450.0,83.47177853]
[1739868397330,1.62339327,95451.0,95450.0,83.46494853]
[1739868398234,1.62339327,95451.0,95450.0,83.37640692]
[1739868398442,1.62339327,95451.0,95450.0,83.21696692]
[1739868399745,1.62339327,95451.0,95450.0,82.82031106]
[1739868400545,1.26259327,95451.0,95450.0,82.82031106]
[1739868400850,1.98419327,95451.0,95450.0,82.82031106]
[1739868401644,1.98419327,95451.0,95450.0,82.73505586]
[1739868402045,1.98419327,95451.0,95450.0,82.66457586]
[1739868403747,2.09701295,95451.0,95450.0,82.66457586]
[1739868404452,2.09701295,95451.0,95450.0,82.62947586]
[1739868405349,2.09701295,95451.0,95450.0,82.61247586]
[1739868406848,1.79701295,95451.0,95450.0,82.48582587]
[1739868407152,1.79701295,95451.0,95450.0,82.46983586]
[1739868407343,1.79701295,95451.0,95450.0,82.41503586]
[1739868407741,1.79701295,95451.0,95450.0,82.34289583]
[1739868409553,1.79701295,95451.0,95450.0,82.32879583]
[1739868410753,1.79701295,95451.0,95450.0,82.31469583]
[1739868412157,1.79701295,95451.0,95450.0,82.25977583]
[1739868412554,1.07541295,95451.0,95450.0,82.25528583]
[1739868412753,1.79701295,95451.0,95450.0,82.25528583]
[1739868415865,1.79701295,95451.0,95450.0,82.18314236]
[1739868417462,1.79701295,95451.0,95450.0,82.17950645]
[1739868418465,1.79701295,95451.0,95450.0,81.77799429]
[1739868418672,1.79701295,95451.0,95450.0,81.49354164]
[1739868418866,1.79701295,95451.0,95450.0,81.41562112]
[1739868419062,1.79701295,95451.0,95450.0,81.37381112]
[1739868419263,1.79701295,95451.0,95450.0,81.30877112]
[1739868419556,1.79701295,95451.0,95450.0,81.22034548]
[1739868419865,1.79701295,95451.0,95450.0,81.01115459]
[1739868420073,1.79701295,95451.0,95450.0,80.87723533]
[1739868420267,1.79701295,95451.0,95450.0,80.82588592]
[1739868420462,1.79701295,95451.0,95450.0,80.70180115]
[1739868420658,1.79701295,95451.0,95450.0,80.50798115]
[1739868421064,2.09701295,95451.0,95450.0,80.37500115]
[1739868421271,2.09701295,95451.0,95450.0,80.01769482]
[1739868421473,2.09701295,95451.0,95450.0,79.74811266]
[1739868421672,2.09701295,95451.0,95450.0,79.71125266]
[1739868421975,2.09701295,95451.0,95450.0,79.69025945]
[1739868422370,2.09701295,95451.0,95450.0,79.66526945]
[1739868422676,1.65581295,95451.0,95450.0,79.66526945]
[1739868422874,1.65581295,95451.0,95450.0,79.56526945]
[1739868423666,1.65581295,95451.0,95450.0,79.49312782]
[1739868423868,1.65581295,95451.0,95450.0,77.96492782]
[1739868427178,1.65581295,95451.0,95450.0,0.001]
[1739868427378,0.2095552,95445.0,95444.0,0.1417]
[1739868427776,0.32360445,95445.0,95444.0,0.09645957]
[1739868428073,0.32360445,95445.0,95444.0,0.05115461]
[1739868428467,0.32760445,95445.0,95444.0,0.05115461]
[1739868428667,0.42413263,95445.0,95444.0,0.05115461]
[1739868429675,0.42813263,95445.0,95444.0,0.05115461]
[1739868431082,0.64453263,95445.0,95444.0,0.05115461]
[1739868431770,0.2095574,95444.0,95443.0,0.04881613]
[1739868432182,0.32647483,95444.0,95443.0,0.04881613]
[1739868433177,0.32947483,95444.0,95443.0,0.04881613]
[1739868434387,0.42600301,95444.0,95443.0,0.04881613]
[1739868434786,0.43000301,95444.0,95443.0,0.04881613]
[1739868436885,0.43000301,95444.0,95443.0,0.01081613]
[1739868437189,0.43684561,95444.0,95442.0,0.00011578]
[1739868437388,0.6387596,95443.0,95442.0,0.00011578]
[1739868437586,0.6032,95443.0,95373.0,0.0524283]
[1739868437885,0.2096357,95409.0,95400.0,78.1325975]
[1739868438187,0.3608,95406.0,95400.0,78.07669582]
[1739868438591,0.15116,95406.0,95400.0,78.07669582]
[1739868439279,0.15116,95406.0,95400.0,78.08369582]
[1739868439690,0.15216,95406.0,95400.0,78.01854513]
[1739868440080,0.49714331,95406.0,95401.0,0.0673]
[1739868440690,0.34598331,95406.0,95401.0,0.0673]
[1739868441292,0.34698331,95406.0,95401.0,0.0673]
[1739868441586,0.2096482,95403.0,95401.0,0.0673]
[1739868441794,0.2096482,95403.0,95402.0,0.1434]
[1739868442190,0.22219256,95403.0,95402.0,0.1434]
[1739868443086,0.2096482,95403.0,95402.0,0.1434]
[1739868443283,0.2096482,95403.0,95402.0,0.1444]
[1739868444091,0.2096482,95403.0,95402.0,0.1454]
[1739868445096,0.2149966,95403.0,95402.0,0.1454]
[1739868445991,0.0053484,95403.0,95402.0,0.1454]
[1739868458897,0.2149958,95403.0,95402.0,0.1454]
[1739868459492,0.06495961,95403.0,95402.0,0.1454]
[1739868459696,0.1094546,95403.0,95402.0,0.1454]
[1739868459997,0.0051346,95403.0,95402.0,0.1454]
[1739868460590,0.214782,95403.0,95402.0,0.1454]
[1739868461506,0.0051346,95403.0,95402.0,0.1454]
[1739868461801,0.0051346,95403.0,95402.0,0.0721]
[1739868462999,0.0051346,95403.0,95402.0,0.002]
[1739868463887,0.0784346,95403.0,95402.0,0.002]
[1739868466899,0.0784346,95403.0,95402.0,0.00158095]
[1739868471405,0.0733,95403.0,95402.0,0.00158095]
[1739868471795,0.2829474,95403.0,95402.0,0.00158095]
[1739868472207,0.4925874,95403.0,95402.0,0.00158095]
[1739868476698,0.4192874,95403.0,95402.0,0.00158095]
[1739868476898,0.31570064,95403.0,95400.0,77.92180078]
[1739868477106,0.20964,95401.0,95400.0,77.92120078]
[1739868478198,0.20964,95401.0,95400.0,77.92320078]
[1739868478401,0.20964,95401.0,95400.0,77.92420078]
[1739868479909,0.4192918,95401.0,95400.0,77.92420078]
[1739868481914,0.5932918,95401.0,95400.0,77.92420078]
[1739868482099,0.59050376,95401.0,95400.0,76.75844671]
[1739868482408,0.80690376,95401.0,95400.0,73.85992914]
[1739868482604,0.91172501,95401.0,95400.0,73.58565768]
[1739868482905,0.50690376,95401.0,95400.0,73.12435985]
[1739868483301,0.29050376,95401.0,95400.0,73.12435985]
[1739868484013,0.29050376,95401.0,95400.0,73.12235985]
[1739868484207,0.29150376,95401.0,95400.0,73.12235985]
[1739868484903,0.29150376,95401.0,95400.0,73.12335985]
[1739868484904,0.29750376,95401.0,95400.0,73.12335985]
[1739868485104,0.30450376,95401.0,95400.0,73.12335985]
[1739868486013,0.20369058,95401.0,95400.0,73.12335985]
[1739868487403,0.41334238,95401.0,95400.0,73.12335985]
[1739868487611,0.62974238,95401.0,95400.0,73.12335985]
[1739868488006,0.42009058,95401.0,95400.0,73.12335985]
[1739868488417,0.62974238,95401.0,95400.0,73.12335985]
[1739868489616,0.62974238,95401.0,95400.0,73.05118316]
[1739868489809,0.62974238,95401.0,95400.0,72.781601]
[1739868490005,0.62974238,95401.0,95400.0,72.7571979]
[1739868490310,0.62974238,95401.0,95400.0,72.75443932]
[1739868492208,0.62974238,95401.0,95400.0,72.66913719]
[1739868492414,0.62974238,95401.0,95400.0,72.60089581]
[1739868492713,0.62974238,95401.0,95400.0,72.50247046]
[1739868492906,1.54414238,95401.0,95400.0,72.50247046]
[1739868494210,1.54414238,95401.0,95400.0,72.32530376]
[1739868494518,1.54414238,95401.0,95400.0,72.28491286]
[1739868494705,1.54414238,95401.0,95400.0,72.15886003]
[1739868494907,1.53714238,95401.0,95400.0,72.15786003]
[1739868495110,1.54414238,95401.0,95400.0,72.15886003]
[1739868495318,1.54414238,95401.0,95400.0,72.11966003]
[1739868495518,1.84414238,95401.0,95400.0,72.11966003]
[1739868496418,1.95702529,95401.0,95400.0,71.74963173]
[1739868496712,1.95702529,95401.0,95400.0,71.70763807]
[1739868496918,1.95702529,95401.0,95400.0,0.002]
[1739868497222,0.2096901,95384.0,95360.0,0.06802968]
[1739868497408,0.3608,95361.0,95360.0,0.06802968]
[1739868497611,0.3608,95361.0,95351.0,0.06802968]
[1739868497817,0.3608,95353.0,95352.0,0.2097596]
[1739868498013,0.46668,95353.0,95352.0,0.2097596]
[1739868498212,0.0474,95353.0,95352.0,0.13756985]
[1739868498415,0.3608,95361.0,95360.0,0.002]
[1739868498619,0.37300312,95361.0,95360.0,0.002]
[1739868499616,0.3608,95361.0,95352.0,0.004]
[1739868499816,0.10724,95360.0,95352.0,0.004]
[1739868500117,0.10724,95360.0,95352.0,0.008]
[1739868500316,0.001,95353.0,95352.0,0.008]
[1739868500915,0.10724,95360.0,95352.0,0.004]
[1739868501113,0.10724,95360.0,95352.0,0.005]
[1739868501415,0.10724,95360.0,95353.0,0.2049]
[1739868501616,0.3638,95361.0,95353.0,0.2049]
[1739868502121,0.3608,95361.0,95353.0,0.2049]
[1739868502313,0.09657158,95360.0,95353.0,0.2049]
[1739868504710,0.3608,95361.0,95353.0,0.2049]